[Event "Early-Titled-Tuesday-Blitz-February-13-2024"]
[Site "Chess.com"]
[Date "2024.02.13"]
[Round "5"]
[White "deribas12345"]
[Black "DarkAlekhine"]
[Result "1-0"]
[WhiteElo "2603"]
[BlackElo "2801"]
[TimeControl "180+1"]
[EndTime "8:57:32 PST"]
[Termination "deribas12345 won by resignation"]

1. d4 {[%clk 0:03:00.9]} 1... Nf6 {[%clk 0:03:00.2]} 2. c4 {[%clk 0:03:00.8]}
2... e6 {[%clk 0:03:00.8]} 3. Nc3 {[%clk 0:03:00.5]} 3... Bb4 {[%clk 0:03:00.9]}
4. f3 {[%clk 0:02:55.7]} 4... c5 {[%clk 0:03:00.4]} 5. a3 {[%clk 0:02:55.8]}
5... Bxc3+ {[%clk 0:02:57.9]} 6. bxc3 {[%clk 0:02:56.7]} 6... b6 {[%clk
0:02:57.4]} 7. e4 {[%clk 0:02:56.7]} 7... O-O {[%clk 0:02:57.3]} 8. Bd3 {[%clk
0:02:56.4]} 8... Nc6 {[%clk 0:02:56.5]} 9. Ne2 {[%clk 0:02:56.7]} 9... d6 {[%clk
0:02:55.7]} 10. O-O {[%clk 0:02:55.2]} 10... Ba6 {[%clk 0:02:51.6]} 11. Bg5
{[%clk 0:02:54.6]} 11... h6 {[%clk 0:02:51.3]} 12. Bh4 {[%clk 0:02:54.7]} 12...
Na5 {[%clk 0:02:40.7]} 13. f4 {[%clk 0:02:50.9]} 13... Bxc4 {[%clk 0:01:08.8]}
14. e5 {[%clk 0:02:43.8]} 14... dxe5 {[%clk 0:01:05.8]} 15. fxe5 {[%clk
0:02:40.3]} 15... g5 {[%clk 0:00:58.3]} 16. exf6 {[%clk 0:02:27.2]} 16... gxh4
{[%clk 0:00:58.3]} 17. Qd2 {[%clk 0:01:41.9]} 17... Bxd3 {[%clk 0:00:26.4]} 18.
Qxh6 {[%clk 0:01:38.9]} 18... Qxf6 {[%clk 0:00:25.1]} 19. Rxf6 {[%clk
0:01:38.2]} 1-0

[Event "Early-Titled-Tuesday-Blitz-February-13-2024"]
[Site "Chess.com"]
[Date "2024.02.13"]
[Round "5"]
[White "Actuary44"]
[Black "MasterofMasters2006"]
[Result "1-0"]
[WhiteElo "2487"]
[BlackElo "2272"]
[TimeControl "180+1"]
[EndTime "8:57:37 PST"]
[Termination "Actuary44 won by checkmate"]

1. e4 {[%clk 0:03:00.9]} 1... e5 {[%clk 0:02:57.4]} 2. d4 {[%clk 0:02:59]} 2...
exd4 {[%clk 0:02:55.4]} 3. c3 {[%clk 0:02:59.7]} 3... dxc3 {[%clk 0:02:53.3]} 4.
Bc4 {[%clk 0:02:59.8]} 4... Nc6 {[%clk 0:02:51.1]} 5. Nf3 {[%clk 0:02:56.1]}
5... Nf6 {[%clk 0:02:50.1]} 6. O-O {[%clk 0:02:50.3]} 6... d6 {[%clk 0:02:49.2]}
7. Qb3 {[%clk 0:02:48.8]} 7... Qe7 {[%clk 0:02:38.8]} 8. Nxc3 {[%clk 0:02:48.6]}
8... Bd7 {[%clk 0:02:21]} 9. Qxb7 {[%clk 0:02:26.1]} 9... Rb8 {[%clk 0:02:19.6]}
10. Qxc7 {[%clk 0:02:25.8]} 10... Rc8 {[%clk 0:02:12.5]} 11. Qb7 {[%clk
0:02:23.7]} 11... Rb8 {[%clk 0:02:12.6]} 12. Qa6 {[%clk 0:02:23.5]} 12... Rb6
{[%clk 0:02:11.5]} 13. Qa3 {[%clk 0:02:11.5]} 13... h6 {[%clk 0:01:58.3]} 14.
Be3 {[%clk 0:02:09.9]} 14... Rb4 {[%clk 0:01:46.9]} 15. Bd5 {[%clk 0:02:07.5]}
15... Rb8 {[%clk 0:01:31.6]} 16. Rac1 {[%clk 0:01:57.8]} 16... g5 {[%clk
0:00:39]} 17. Nd4 {[%clk 0:01:55.8]} 17... Ne5 {[%clk 0:00:37]} 18. Qxa7 {[%clk
0:01:53.3]} 18... Rc8 {[%clk 0:00:33.9]} 19. Ncb5 {[%clk 0:01:50]} 19... Nxd5
{[%clk 0:00:23.2]} 20. exd5 {[%clk 0:01:50.3]} 20... Rd8 {[%clk 0:00:12.4]} 21.
Nc7# {[%clk 0:01:45.5]} 1-0

[Event "Early-Titled-Tuesday-Blitz-February-13-2024"]
[Site "Chess.com"]
[Date "2024.02.13"]
[Round "5"]
[White "twofoxniel"]
[Black "JG-17"]
[Result "1-0"]
[WhiteElo "2616"]
[BlackElo "2467"]
[TimeControl "180+1"]
[EndTime "8:57:38 PST"]
[Termination "twofoxniel won by resignation"]

1. e4 {[%clk 0:03:00.9]} 1... c5 {[%clk 0:03:00.1]} 2. c3 {[%clk 0:03:00.5]}
2... d5 {[%clk 0:02:56.3]} 3. exd5 {[%clk 0:03:00.4]} 3... Qxd5 {[%clk
0:02:57.2]} 4. d4 {[%clk 0:03:01.3]} 4... cxd4 {[%clk 0:02:56.5]} 5. cxd4 {[%clk
0:03:01.7]} 5... Nc6 {[%clk 0:02:55]} 6. Nf3 {[%clk 0:03:02.3]} 6... Bg4 {[%clk
0:02:53.7]} 7. Nc3 {[%clk 0:03:02.1]} 7... Qh5 {[%clk 0:02:32.4]} 8. d5 {[%clk
0:03:01.8]} 8... Bxf3 {[%clk 0:02:24.5]} 9. gxf3 {[%clk 0:03:00.2]} 9... Ne5
{[%clk 0:02:24]} 10. Bb5+ {[%clk 0:02:59.9]} 10... Kd8 {[%clk 0:02:23.6]} 11.
Be2 {[%clk 0:02:54.7]} 11... Qh3 {[%clk 0:02:14.9]} 12. Bf4 {[%clk 0:02:43.8]}
12... Ng6 {[%clk 0:02:00.6]} 13. Bg3 {[%clk 0:02:41.3]} 13... h5 {[%clk
0:01:58.7]} 14. Qb3 {[%clk 0:02:41.8]} 14... h4 {[%clk 0:01:56.2]} 15. Qxb7
{[%clk 0:02:38]} 15... Qc8 {[%clk 0:01:56.8]} 16. Bc7+ {[%clk 0:02:32.1]} 16...
Qxc7 {[%clk 0:01:49.3]} 17. Qxa8+ {[%clk 0:02:31.6]} 17... Qc8 {[%clk
0:01:47.7]} 18. Qxa7 {[%clk 0:02:27.4]} 18... Nf6 {[%clk 0:01:45.6]} 19. O-O-O
{[%clk 0:02:15.4]} 19... Nf4 {[%clk 0:01:43.2]} 20. Ba6 {[%clk 0:02:13.7]} 20...
Qc7 {[%clk 0:01:39.5]} 21. Qa8+ {[%clk 0:02:11.6]} 21... Kd7 {[%clk 0:01:40.1]}
22. Bb5+ {[%clk 0:02:10.5]} 22... Kd6 {[%clk 0:01:40.5]} 23. Rhe1 {[%clk
0:01:56.6]} 23... Qb6 {[%clk 0:01:32.1]} 24. Qa3+ {[%clk 0:01:34.7]} 24... Kc7
{[%clk 0:01:23.4]} 25. Qa4 {[%clk 0:01:24.3]} 25... g6 {[%clk 0:01:20.1]} 26.
Qxf4+ {[%clk 0:01:23]} 26... Kc8 {[%clk 0:01:19.5]} 27. Qc4+ {[%clk 0:01:20]}
27... Kb8 {[%clk 0:01:19.1]} 28. Kb1 {[%clk 0:01:17.1]} 28... Bh6 {[%clk
0:01:19.2]} 29. Na4 {[%clk 0:01:16.2]} 29... Qa5 {[%clk 0:01:18.4]} 30. Bc6
{[%clk 0:01:13.9]} 30... Ka7 {[%clk 0:01:16]} 31. Rxe7+ {[%clk 0:01:10.2]} 1-0

[Event "Early-Titled-Tuesday-Blitz-February-13-2024"]
[Site "Chess.com"]
[Date "2024.02.13"]
[Round "5"]
[White "banhgiahuy2606"]
[Black "Njal28"]
[Result "0-1"]
[WhiteElo "2696"]
[BlackElo "2986"]
[TimeControl "180+1"]
[EndTime "8:57:39 PST"]
[Termination "Njal28 won by resignation"]

1. c4 {[%clk 0:03:00.9]} 1... g6 {[%clk 0:02:59.3]} 2. Nf3 {[%clk 0:02:58.1]}
2... Bg7 {[%clk 0:03:00.2]} 3. d4 {[%clk 0:02:58.4]} 3... c5 {[%clk 0:02:59.4]}
4. Nc3 {[%clk 0:02:57.5]} 4... cxd4 {[%clk 0:02:57.2]} 5. Nxd4 {[%clk
0:02:58.4]} 5... Nc6 {[%clk 0:02:57.7]} 6. e3 {[%clk 0:02:54.3]} 6... Nf6 {[%clk
0:02:55.7]} 7. Be2 {[%clk 0:02:54.4]} 7... O-O {[%clk 0:02:54.9]} 8. O-O {[%clk
0:02:55]} 8... d6 {[%clk 0:02:49.3]} 9. e4 {[%clk 0:02:49.7]} 9... Nxe4 {[%clk
0:02:28.2]} 10. Nxc6 {[%clk 0:02:49.3]} 10... Nxc3 {[%clk 0:02:28.5]} 11. Nxd8
{[%clk 0:02:49.2]} 11... Nxd1 {[%clk 0:02:29.1]} 12. Nxf7 {[%clk 0:02:42.9]}
12... Nxb2 {[%clk 0:02:18.3]} 13. Nh6+ {[%clk 0:02:20.5]} 13... Kh8 {[%clk
0:02:18.1]} 14. Bg5 {[%clk 0:02:10.7]} 14... Na4 {[%clk 0:02:12.3]} 15. Bf3
{[%clk 0:01:52.6]} 15... Bf6 {[%clk 0:01:55.6]} 16. Bxf6+ {[%clk 0:01:47.9]}
16... Rxf6 {[%clk 0:01:56.5]} 17. Rfe1 {[%clk 0:01:47.9]} 17... e5 {[%clk
0:01:52.1]} 18. Rad1 {[%clk 0:01:41.7]} 18... Kg7 {[%clk 0:01:43.4]} 19. Ng4
{[%clk 0:01:36.1]} 19... Bxg4 {[%clk 0:01:43.3]} 20. Bxg4 {[%clk 0:01:37]} 20...
Nc5 {[%clk 0:01:40.5]} 21. Rd5 {[%clk 0:01:30.4]} 21... Raf8 {[%clk 0:01:30.2]}
22. f3 {[%clk 0:01:25.5]} 22... h5 {[%clk 0:01:28.9]} 23. Bh3 {[%clk 0:01:24.9]}
23... g5 {[%clk 0:01:17.9]} 24. g3 {[%clk 0:01:15.6]} 24... b6 {[%clk
0:01:16.2]} 25. f4 {[%clk 0:01:04.5]} 25... gxf4 {[%clk 0:01:13.9]} 26. gxf4
{[%clk 0:01:04.7]} 26... Rg6+ {[%clk 0:01:14]} 27. Kh1 {[%clk 0:01:01.6]} 27...
Rxf4 {[%clk 0:01:14.9]} 0-1

[Event "Early-Titled-Tuesday-Blitz-February-13-2024"]
[Site "Chess.com"]
[Date "2024.02.13"]
[Round "5"]
[White "nicolasbatista3"]
[Black "NovoselovRoman"]
[Result "1-0"]
[WhiteElo "2356"]
[BlackElo "2532"]
[TimeControl "180+1"]
[EndTime "8:57:39 PST"]
[Termination "nicolasbatista3 won on time"]

1. d4 {[%clk 0:03:00.9]} 1... d5 {[%clk 0:02:57.1]} 2. c4 {[%clk 0:02:53.5]}
2... e6 {[%clk 0:02:57.4]} 3. Nc3 {[%clk 0:02:53]} 3... Nf6 {[%clk 0:02:57.8]}
4. Bg5 {[%clk 0:02:50.7]} 4... Be7 {[%clk 0:02:55.4]} 5. e3 {[%clk 0:02:49.6]}
5... Nbd7 {[%clk 0:02:54.3]} 6. cxd5 {[%clk 0:02:48.1]} 6... exd5 {[%clk
0:02:54.6]} 7. Bd3 {[%clk 0:02:47.2]} 7... O-O {[%clk 0:02:54.3]} 8. Qc2 {[%clk
0:02:46.7]} 8... c6 {[%clk 0:02:53]} 9. Nf3 {[%clk 0:02:42.8]} 9... Re8 {[%clk
0:02:53.4]} 10. O-O-O {[%clk 0:02:39.7]} 10... Nf8 {[%clk 0:02:51.9]} 11. Bf4
{[%clk 0:02:40.4]} 11... Bg4 {[%clk 0:02:43.8]} 12. h3 {[%clk 0:02:33.6]} 12...
Bh5 {[%clk 0:02:43]} 13. g4 {[%clk 0:02:32]} 13... Bg6 {[%clk 0:02:43.5]} 14.
Ne5 {[%clk 0:02:27.9]} 14... Bxd3 {[%clk 0:02:42.9]} 15. Qxd3 {[%clk 0:02:27.3]}
15... Ne6 {[%clk 0:02:32.3]} 16. Bg3 {[%clk 0:02:27]} 16... Bb4 {[%clk 0:02:32]}
17. f4 {[%clk 0:02:26.5]} 17... Bxc3 {[%clk 0:02:31.1]} 18. Qxc3 {[%clk
0:02:15.8]} 18... Ne4 {[%clk 0:02:32]} 19. Qe1 {[%clk 0:02:16.1]} 19... c5
{[%clk 0:02:04.6]} 20. f5 {[%clk 0:02:10.9]} 20... Nxg3 {[%clk 0:01:58.7]} 21.
fxe6 {[%clk 0:02:01.2]} 1-0

[Event "Early-Titled-Tuesday-Blitz-February-13-2024"]
[Site "Chess.com"]
[Date "2024.02.13"]
[Round "5"]
[White "DonkyDonkyDonkey"]
[Black "SnekkerAndersen"]
[Result "1-0"]
[WhiteElo "2937"]
[BlackElo "2643"]
[TimeControl "180+1"]
[EndTime "8:57:41 PST"]
[Termination "DonkyDonkyDonkey won by resignation"]

1. e4 {[%clk 0:02:35.9]} 1... e6 {[%clk 0:02:59.2]} 2. d4 {[%clk 0:02:35.6]}
2... d5 {[%clk 0:02:59]} 3. e5 {[%clk 0:02:35.9]} 3... c5 {[%clk 0:02:59.1]} 4.
c3 {[%clk 0:02:35.6]} 4... Nc6 {[%clk 0:02:59.2]} 5. Nf3 {[%clk 0:02:33.2]} 5...
Bd7 {[%clk 0:02:58.8]} 6. Bd3 {[%clk 0:02:25.3]} 6... Qb6 {[%clk 0:02:57.2]} 7.
dxc5 {[%clk 0:02:25.8]} 7... Bxc5 {[%clk 0:02:53.3]} 8. O-O {[%clk 0:02:26.7]}
8... a5 {[%clk 0:02:50.8]} 9. Nbd2 {[%clk 0:02:25.2]} 9... Nge7 {[%clk 0:02:40]}
10. Nb3 {[%clk 0:02:25.4]} 10... Ng6 {[%clk 0:02:40.2]} 11. Nxc5 {[%clk
0:02:25.8]} 11... Qxc5 {[%clk 0:02:40.8]} 12. Re1 {[%clk 0:02:26.7]} 12... a4
{[%clk 0:02:37]} 13. h4 {[%clk 0:02:26.6]} 13... a3 {[%clk 0:02:34.7]} 14. h5
{[%clk 0:02:23.4]} 14... Nge7 {[%clk 0:02:34.2]} 15. Be3 {[%clk 0:02:21.9]}
15... Qa5 {[%clk 0:02:33.7]} 16. b4 {[%clk 0:02:22.2]} 16... Qa4 {[%clk
0:02:31.6]} 17. Bc2 {[%clk 0:02:21.3]} 17... Qb5 {[%clk 0:02:25.7]} 18. Bc5
{[%clk 0:02:21.8]} 18... h6 {[%clk 0:02:18]} 19. Nd4 {[%clk 0:02:16.4]} 19...
Nxd4 {[%clk 0:02:17.2]} 20. cxd4 {[%clk 0:02:17.3]} 20... Nc6 {[%clk 0:02:15.8]}
21. Qg4 {[%clk 0:02:17.1]} 21... O-O-O {[%clk 0:01:57.7]} 22. Qg3 {[%clk
0:02:17.6]} 22... Qa6 {[%clk 0:01:36]} 23. b5 {[%clk 0:02:09]} 23... Qxb5 {[%clk
0:01:33]} 24. Qxa3 {[%clk 0:02:09.7]} 24... b6 {[%clk 0:01:32.3]} 25. Bd3 {[%clk
0:01:58.5]} 25... Qa5 {[%clk 0:01:28.8]} 26. Qxa5 {[%clk 0:01:58.2]} 26... Nxa5
{[%clk 0:01:19.8]} 27. Bxb6 {[%clk 0:01:56.8]} 27... Nc4 {[%clk 0:01:20.3]} 28.
Bxd8 {[%clk 0:01:53.5]} 28... Rxd8 {[%clk 0:01:18.9]} 29. Rab1 {[%clk
0:01:52.5]} 29... Na5 {[%clk 0:01:10.3]} 30. Rec1+ {[%clk 0:01:51]} 30... Nc6
{[%clk 0:01:09.9]} 31. Bb5 {[%clk 0:01:51]} 31... Kc7 {[%clk 0:01:10.3]} 32.
Bxc6 {[%clk 0:01:51.9]} 32... Bxc6 {[%clk 0:01:10.3]} 33. Rc5 {[%clk 0:01:51.8]}
33... Ra8 {[%clk 0:01:10.5]} 34. Rbc1 {[%clk 0:01:52.2]} 34... Ra6 {[%clk
0:01:10.9]} 35. R1c2 {[%clk 0:01:49.3]} 35... Kd7 {[%clk 0:01:11.2]} 36. Kh2
{[%clk 0:01:49.7]} 36... f6 {[%clk 0:01:00.5]} 37. f4 {[%clk 0:01:46.7]} 37...
Rb6 {[%clk 0:00:57.3]} 38. R2c3 {[%clk 0:01:46.8]} 38... Ra6 {[%clk 0:00:53.4]}
39. Rg3 {[%clk 0:01:46.9]} 1-0

[Event "Early-Titled-Tuesday-Blitz-February-13-2024"]
[Site "Chess.com"]
[Date "2024.02.13"]
[Round "5"]
[White "colegiodemadrid"]
[Black "Gabrielian_Artur"]
[Result "0-1"]
[WhiteElo "2536"]
[BlackElo "2792"]
[TimeControl "180+1"]
[EndTime "8:57:47 PST"]
[Termination "Gabrielian_Artur won by resignation"]

1. e4 {[%clk 0:02:59.1]} 1... c5 {[%clk 0:02:59.9]} 2. Nf3 {[%clk 0:02:59]} 2...
d6 {[%clk 0:03:00.4]} 3. d4 {[%clk 0:02:59.4]} 3... cxd4 {[%clk 0:03:00.9]} 4.
Nxd4 {[%clk 0:03:00.3]} 4... Nf6 {[%clk 0:03:01.4]} 5. Nc3 {[%clk 0:03:00.3]}
5... Nc6 {[%clk 0:03:01.7]} 6. Bc4 {[%clk 0:02:59.2]} 6... e6 {[%clk 0:03:01.5]}
7. Be3 {[%clk 0:02:58.2]} 7... a6 {[%clk 0:02:57.8]} 8. Qe2 {[%clk 0:02:57.8]}
8... Qc7 {[%clk 0:02:57.8]} 9. Bb3 {[%clk 0:02:57.6]} 9... Na5 {[%clk
0:02:54.6]} 10. O-O-O {[%clk 0:02:46.6]} 10... b5 {[%clk 0:02:53.7]} 11. g4
{[%clk 0:02:46.1]} 11... b4 {[%clk 0:02:48.8]} 12. g5 {[%clk 0:02:36.5]} 12...
bxc3 {[%clk 0:02:44.3]} 13. gxf6 {[%clk 0:02:36.7]} 13... cxb2+ {[%clk
0:02:43.9]} 14. Kxb2 {[%clk 0:02:36.2]} 14... gxf6 {[%clk 0:02:38.3]} 15. Rd3
{[%clk 0:02:20.9]} 15... Bd7 {[%clk 0:02:08.9]} 16. Rc3 {[%clk 0:02:18]} 16...
Qb7 {[%clk 0:02:08.8]} 17. Qh5 {[%clk 0:02:13]} 17... Nxb3 {[%clk 0:01:56.5]}
18. cxb3 {[%clk 0:02:09.4]} 18... Qxe4 {[%clk 0:01:36.1]} 19. Rhc1 {[%clk
0:02:09.2]} 19... Be7 {[%clk 0:01:30.4]} 20. Rc7 {[%clk 0:02:07]} 20... Rd8
{[%clk 0:01:29.3]} 21. Rg1 {[%clk 0:01:55.8]} 21... Qe5 {[%clk 0:01:07.3]} 22.
Qh6 {[%clk 0:01:32.3]} 22... d5 {[%clk 0:01:07]} 23. Qg7 {[%clk 0:01:26.7]}
23... Rf8 {[%clk 0:01:03.2]} 24. Qxh7 {[%clk 0:01:20.3]} 24... Qxc7 {[%clk
0:01:02.3]} 25. Rc1 {[%clk 0:01:17.5]} 25... Qe5 {[%clk 0:01:01.1]} 26. h4
{[%clk 0:01:18.1]} 26... f5 {[%clk 0:01:00.7]} 27. h5 {[%clk 0:01:17]} 27... Rh8
{[%clk 0:01:00.1]} 0-1

[Event "Early-Titled-Tuesday-Blitz-February-13-2024"]
[Site "Chess.com"]
[Date "2024.02.13"]
[Round "5"]
[White "Roedor"]
[Black "onnoelgersma"]
[Result "0-1"]
[WhiteElo "2302"]
[BlackElo "2537"]
[TimeControl "180+1"]
[EndTime "8:58:03 PST"]
[Termination "onnoelgersma won by resignation"]

1. c4 {[%clk 0:03:00]} 1... g6 {[%clk 0:02:54]} 2. g3 {[%clk 0:03:00]} 2... Bg7
{[%clk 0:02:52.8]} 3. Bg2 {[%clk 0:03:00.2]} 3... d6 {[%clk 0:02:49.8]} 4. Nc3
{[%clk 0:02:59.2]} 4... Nc6 {[%clk 0:02:49.6]} 5. Nf3 {[%clk 0:02:59]} 5... Bf5
{[%clk 0:02:47.7]} 6. e4 {[%clk 0:02:46.8]} 6... Bg4 {[%clk 0:02:44.7]} 7. h3
{[%clk 0:02:46.8]} 7... Bxf3 {[%clk 0:02:41.8]} 8. Bxf3 {[%clk 0:02:47.6]} 8...
e6 {[%clk 0:02:35.9]} 9. h4 {[%clk 0:02:46.1]} 9... h5 {[%clk 0:02:35.1]} 10. d3
{[%clk 0:02:41.9]} 10... Nge7 {[%clk 0:02:34.3]} 11. Be3 {[%clk 0:02:42]} 11...
Qd7 {[%clk 0:02:25.4]} 12. d4 {[%clk 0:02:40.7]} 12... e5 {[%clk 0:02:25]} 13.
d5 {[%clk 0:02:28.1]} 13... Nd4 {[%clk 0:02:23.7]} 14. Bg2 {[%clk 0:02:24.2]}
14... O-O {[%clk 0:02:18.9]} 15. Bh3 {[%clk 0:02:20.3]} 15... f5 {[%clk
0:02:11.5]} 16. Bg5 {[%clk 0:02:17.6]} 16... Rae8 {[%clk 0:01:56]} 17. O-O
{[%clk 0:02:17.3]} 17... c5 {[%clk 0:01:43.7]} 18. f4 {[%clk 0:02:14]} 18...
exf4 {[%clk 0:01:33.6]} 19. Rxf4 {[%clk 0:02:10.7]} 19... Qc7 {[%clk 0:01:29.9]}
20. Bxe7 {[%clk 0:01:57]} 20... Qxe7 {[%clk 0:01:26.6]} 21. exf5 {[%clk
0:01:52.4]} 21... Qe3+ {[%clk 0:01:26.3]} 22. Kh2 {[%clk 0:01:52.5]} 22... Nxf5
{[%clk 0:01:14.5]} 23. Bxf5 {[%clk 0:01:52.2]} 23... Rxf5 {[%clk 0:01:14.4]} 24.
Rxf5 {[%clk 0:01:52]} 24... gxf5 {[%clk 0:01:15.3]} 25. Qxh5 {[%clk 0:01:50.5]}
25... Qf2+ {[%clk 0:01:01]} 26. Kh3 {[%clk 0:01:49.7]} 26... Re3 {[%clk
0:01:00]} 27. Qg6 {[%clk 0:01:29]} 27... f4 {[%clk 0:00:46.3]} 0-1

[Event "Early-Titled-Tuesday-Blitz-February-13-2024"]
[Site "Chess.com"]
[Date "2024.02.13"]
[Round "5"]
[White "SantoBlue"]
[Black "Orest_Vovk"]
[Result "1-0"]
[WhiteElo "2972"]
[BlackElo "2676"]
[TimeControl "180+1"]
[EndTime "8:58:10 PST"]
[Termination "SantoBlue won by resignation"]

1. e4 {[%clk 0:03:00.9]} 1... g5 {[%clk 0:02:56.9]} 2. d4 {[%clk 0:03:00.4]}
2... g4 {[%clk 0:02:56.1]} 3. Nc3 {[%clk 0:02:56.8]} 3... Bg7 {[%clk 0:02:55.7]}
4. Be3 {[%clk 0:02:57.1]} 4... h5 {[%clk 0:02:52.7]} 5. h3 {[%clk 0:02:56.6]}
5... d6 {[%clk 0:02:50.9]} 6. hxg4 {[%clk 0:02:54.8]} 6... hxg4 {[%clk
0:02:51.1]} 7. Rxh8 {[%clk 0:02:54.5]} 7... Bxh8 {[%clk 0:02:52]} 8. Qd2 {[%clk
0:02:53.4]} 8... c6 {[%clk 0:02:51.7]} 9. Bd3 {[%clk 0:02:51.1]} 9... Qa5 {[%clk
0:02:51.3]} 10. Nge2 {[%clk 0:02:50.7]} 10... Nf6 {[%clk 0:02:47.7]} 11. O-O-O
{[%clk 0:02:50.5]} 11... b5 {[%clk 0:02:46.9]} 12. Rh1 {[%clk 0:02:50.6]} 12...
Bg7 {[%clk 0:02:46.1]} 13. e5 {[%clk 0:02:49.6]} 13... dxe5 {[%clk 0:02:35.8]}
14. dxe5 {[%clk 0:02:49.6]} 14... Nd5 {[%clk 0:02:26.3]} 15. Bd4 {[%clk
0:02:28.1]} 15... Nxc3 {[%clk 0:02:15.8]} 16. Nxc3 {[%clk 0:02:28]} 16... Be6
{[%clk 0:02:09.8]} 17. Qg5 {[%clk 0:02:25.6]} 17... Bf8 {[%clk 0:02:09.3]} 18.
Bf5 {[%clk 0:02:19]} 18... Bxf5 {[%clk 0:02:02.5]} 19. Qxf5 {[%clk 0:02:19.9]}
19... e6 {[%clk 0:01:56.8]} 20. Qg5 {[%clk 0:02:17.8]} 20... Nd7 {[%clk
0:01:47.2]} 21. Rh8 {[%clk 0:02:17.5]} 21... Qd8 {[%clk 0:01:34.4]} 22. Qxg4
{[%clk 0:02:15.2]} 22... Qe7 {[%clk 0:01:28.6]} 23. Qf3 {[%clk 0:02:09.3]} 23...
Qg5+ {[%clk 0:01:15]} 24. Be3 {[%clk 0:02:07.7]} 24... Qxe5 {[%clk 0:01:11.9]}
25. Qxc6 {[%clk 0:02:08.2]} 25... Rd8 {[%clk 0:00:53.2]} 26. Rg8 {[%clk
0:02:02.7]} 26... b4 {[%clk 0:00:38.9]} 27. Ne4 {[%clk 0:01:57.9]} 27... f6
{[%clk 0:00:28.2]} 28. Nc5 {[%clk 0:01:37.6]} 28... Kf7 {[%clk 0:00:22.8]} 29.
Nxd7 {[%clk 0:01:35.1]} 29... Rxd7 {[%clk 0:00:18]} 30. Rxf8+ {[%clk 0:01:34.2]}
1-0

[Event "Early-Titled-Tuesday-Blitz-February-13-2024"]
[Site "Chess.com"]
[Date "2024.02.13"]
[Round "5"]
[White "rcmz"]
[Black "Let_it_be_1"]
[Result "0-1"]
[WhiteElo "2179"]
[BlackElo "2560"]
[TimeControl "180+1"]
[EndTime "8:58:11 PST"]
[Termination "Let_it_be_1 won by resignation"]

1. b4 {[%clk 0:03:00.9]} 1... d5 {[%clk 0:02:58.9]} 2. Bb2 {[%clk 0:03:00.1]}
2... e6 {[%clk 0:02:57.5]} 3. e3 {[%clk 0:02:59.4]} 3... Nf6 {[%clk 0:02:57.3]}
4. a3 {[%clk 0:02:58.8]} 4... Nbd7 {[%clk 0:02:51.9]} 5. f4 {[%clk 0:02:57.6]}
5... c5 {[%clk 0:02:50.3]} 6. b5 {[%clk 0:02:49.5]} 6... Bd6 {[%clk 0:02:38.9]}
7. Nf3 {[%clk 0:02:48.1]} 7... Qc7 {[%clk 0:02:38.3]} 8. c4 {[%clk 0:02:47.3]}
8... e5 {[%clk 0:02:25.1]} 9. fxe5 {[%clk 0:02:40.3]} 9... Nxe5 {[%clk
0:02:25.2]} 10. Nxe5 {[%clk 0:02:39.9]} 10... Bxe5 {[%clk 0:02:24.8]} 11. d4
{[%clk 0:02:26.5]} 11... Bxh2 {[%clk 0:02:15.5]} 12. cxd5 {[%clk 0:01:57]} 12...
Bg3+ {[%clk 0:02:13.8]} 13. Kd2 {[%clk 0:01:55.8]} 13... Ne4+ {[%clk 0:02:13]}
14. Kc1 {[%clk 0:01:52.9]} 14... Nf2 {[%clk 0:02:08.8]} 15. Qf3 {[%clk
0:01:47.3]} 15... cxd4+ {[%clk 0:02:05.3]} 16. Kd2 {[%clk 0:01:44.1]} 16... Nxh1
{[%clk 0:01:48.1]} 17. Bxd4 {[%clk 0:01:36]} 17... Be5 {[%clk 0:01:42.5]} 18.
Qe4 {[%clk 0:01:25.9]} 18... f6 {[%clk 0:01:39.2]} 19. Bd3 {[%clk 0:01:21.5]}
19... Nf2 {[%clk 0:01:33]} 20. Qf3 {[%clk 0:01:19.5]} 20... Bxd4 {[%clk
0:01:25.8]} 21. exd4 {[%clk 0:01:15.5]} 21... Nxd3 {[%clk 0:01:24.3]} 22. Kxd3
{[%clk 0:01:06.3]} 22... O-O {[%clk 0:01:23.1]} 23. Nc3 {[%clk 0:01:05.5]} 23...
Bd7 {[%clk 0:01:18.7]} 24. a4 {[%clk 0:00:54.2]} 24... Rac8 {[%clk 0:01:17.3]}
25. Kd2 {[%clk 0:00:53.5]} 25... Bg4 {[%clk 0:01:11.3]} 26. Qd3 {[%clk
0:00:50.7]} 26... Qf4+ {[%clk 0:01:07.6]} 0-1

[Event "Early-Titled-Tuesday-Blitz-February-13-2024"]
[Site "Chess.com"]
[Date "2024.02.13"]
[Round "5"]
[White "omer1997"]
[Black "ama18"]
[Result "0-1"]
[WhiteElo "2376"]
[BlackElo "2566"]
[TimeControl "180+1"]
[EndTime "8:58:14 PST"]
[Termination "ama18 won on time"]

1. e4 {[%clk 0:03:00.9]} 1... c5 {[%clk 0:02:54.5]} 2. Nf3 {[%clk 0:03:00.3]}
2... d6 {[%clk 0:02:53.9]} 3. c3 {[%clk 0:02:59.5]} 3... Nf6 {[%clk 0:02:52.8]}
4. Bd3 {[%clk 0:02:58.5]} 4... Nc6 {[%clk 0:02:50.7]} 5. Bc2 {[%clk 0:02:55.6]}
5... g6 {[%clk 0:02:50.5]} 6. h3 {[%clk 0:02:54.3]} 6... Bg7 {[%clk 0:02:50.4]}
7. O-O {[%clk 0:02:54.8]} 7... O-O {[%clk 0:02:49.8]} 8. d4 {[%clk 0:02:55.5]}
8... e5 {[%clk 0:02:44.4]} 9. dxc5 {[%clk 0:02:48.5]} 9... dxc5 {[%clk 0:02:44]}
10. Be3 {[%clk 0:02:48.2]} 10... Qe7 {[%clk 0:02:43.1]} 11. Na3 {[%clk
0:02:45.4]} 11... b6 {[%clk 0:02:41.7]} 12. Qe2 {[%clk 0:02:40.1]} 12... Bb7
{[%clk 0:02:34.9]} 13. Rfd1 {[%clk 0:02:24.7]} 13... Rad8 {[%clk 0:02:31]} 14.
Nc4 {[%clk 0:02:04.1]} 14... Nh5 {[%clk 0:02:30.4]} 15. Rxd8 {[%clk 0:01:54.3]}
15... Rxd8 {[%clk 0:02:29.9]} 16. Rd1 {[%clk 0:01:55.2]} 16... Ba6 {[%clk
0:02:26.9]} 17. Rd5 {[%clk 0:01:18.9]} 17... Rxd5 {[%clk 0:02:20.4]} 18. exd5
{[%clk 0:01:18.4]} 18... Na5 {[%clk 0:02:17]} 19. Bd3 {[%clk 0:01:15.5]} 19...
e4 {[%clk 0:01:53]} 20. d6 {[%clk 0:01:02.3]} 20... Qe6 {[%clk 0:01:41.5]} 21.
Ng5 {[%clk 0:00:17.3]} 21... exd3 {[%clk 0:01:39.1]} 22. Qxd3 {[%clk 0:00:05.7]}
22... Qxc4 {[%clk 0:01:31.3]} 23. Qxc4 {[%clk 0:00:01.9]} 23... Bxc4 {[%clk
0:01:32.2]} 24. d7 {[%clk 0:00:02.4]} 24... Nc6 {[%clk 0:01:31.7]} 0-1